fUSD/lending_fUSD_20250906
["ID","MTS","AMOUNT","RATE_DAILY","PERIOD"]
[383801811,1757121984804,12059.91245077,0.00031,120]
[383801812,1757121990105,-399.74795,0.00039005,2]
[383801813,1757121990127,-399.74796,0.00041005,2]
[383801814,1757121990146,-214.0,0.00043,7]
[383801815,1757121990167,-399.74796,0.00043005,2]
[383801816,1757121990187,-37.75611881,0.000438,30]
[383801817,1757122018631,10066.40466078,0.00024,5]
[383801819,1757122025093,-352.68233314,0.00042,120]
[383801820,1757122025114,-209.83918718,0.000438,30]
[383801821,1757122027860,21844.4270418,0.000225,2]
[383801822,1757122056077,3388.80635142,0.00018,2]
[383801823,1757122056101,4583.27566804,0.00018,2]
[383801824,1757122056126,50000.0,0.00018,2]
[383801825,1757122056151,50000.0,0.00018,2]
[383801826,1757122056175,50000.0,0.00018,2]
[383801827,1757122056200,49843.04,0.00018,2]
[383801828,1757122056225,38244.77471023,0.00018,2]
[383801829,1757122076433,11755.22528977,0.0002,2]
[383801830,1757122076459,50000.0,0.0002,2]
[383801831,1757122076485,50000.0,0.0002,2]
[383801832,1757122076511,50000.0,0.0002,2]
[383801833,1757122076537,49841.34,0.0002,2]
[383801834,1757122076562,50000.0,0.0002,2]
[383801835,1757122076590,49841.34,0.0002,2]
[383801836,1757122076616,50000.0,0.0002,2]
[383801837,1757122076642,50000.0,0.0002,2]
[383801838,1757122076669,50000.0,0.0002,2]
[383801839,1757122076695,50000.0,0.0002,2]
[383801845,1757122146112,-151.46614364,0.00019999,2]
[383801846,1757122146136,-548.46472791,0.00019999,2]
[383801847,1757122146159,-500.0,0.00019999,2]
[383801848,1757122146182,-202.70378713,0.00019999,2]
[383801849,1757122146206,-548.46472791,0.00019999,2]
[383801850,1757122146233,-548.46472791,0.00019999,2]
[383801851,1757122146255,-500.0,0.00019999,2]
[383801852,1757122146278,-548.46472791,0.00019999,2]
[383801853,1757122146302,-548.46472791,0.00019999,2]
[383801854,1757122146327,-548.46472791,0.00019999,2]
[383801855,1757122146353,-548.46472791,0.00019999,2]
[383801856,1757122146377,-548.46472791,0.00019999,2]
[383801857,1757122146400,-548.46472791,0.00019999,2]
[383801858,1757122146424,-548.46472791,0.00019999,2]
[383801859,1757122146448,-548.46472791,0.00019999,2]
[383801860,1757122146470,-548.46472791,0.00019999,2]
[383801861,1757122146493,-548.46472791,0.00019999,2]
[383801862,1757122146518,-548.46472791,0.00019999,2]
[383801863,1757122146542,-548.46472791,0.00019999,2]
[383801864,1757122146569,-548.46472791,0.00019999,2]
[383801865,1757122146592,-548.46472791,0.00019999,2]
[383801866,1757122146617,-548.46472791,0.00019999,2]
[383801867,1757122146643,-548.46472791,0.00019999,2]
[383801868,1757122146667,-548.46472791,0.00019999,2]
[383801869,1757122146693,-548.46472791,0.00019999,2]
[383801870,1757122146718,-548.46472791,0.00019999,2]
[383801871,1757122146745,-318.74571312,0.00019999,2]
[383801872,1757122146768,-548.46472791,0.00019999,2]
[383801873,1757122146791,-548.46472791,0.00019999,2]
[383801874,1757122146816,-548.46472791,0.00019999,2]
[383801875,1757122146840,-548.46472791,0.00019999,2]
[383801876,1757122146865,-548.46472791,0.00019999,2]
[383801877,1757122146889,-548.46472791,0.00019999,2]
[383801878,1757122146912,-548.46472791,0.00019999,2]
[383801879,1757122146935,-548.46472791,0.00019999,2]
[383801880,1757122146958,-548.46472791,0.00019999,2]
[383801881,1757122146981,-548.46472791,0.00019999,2]
[383801882,1757122147005,-548.46472791,0.00019999,2]
[383801883,1757122147031,-548.46472791,0.00019999,2]
[383801884,1757122147053,-548.46472791,0.00019999,2]
[383801885,1757122147075,-548.46472791,0.00019999,2]
[383801886,1757122147098,-548.46472791,0.00019999,2]
[383801887,1757122147123,-548.46472791,0.00019999,2]
[383801888,1757122147147,-548.46472791,0.00019999,2]
[383801889,1757122147171,-548.46472791,0.00019999,2]
[383801890,1757122147194,-548.46472791,0.00019999,2]
[383801891,1757122147217,-548.46472791,0.00019999,2]
[383801892,1757122147241,-548.46472791,0.00019999,2]
[383801893,1757122147264,-548.46472791,0.00019999,2]
[383801894,1757122147289,-548.46472791,0.00019999,2]
[383801895,1757122147312,-548.46472791,0.00019999,2]
[383801896,1757122147335,-548.46472791,0.00019999,2]
[383801897,1757122147358,-548.46472791,0.00019999,2]
[383801898,1757122147380,-548.46472791,0.00019999,2]
[383801899,1757122147405,-548.46472791,0.00019999,2]
[383801900,1757122147428,-548.46472791,0.00019999,2]
[383801901,1757122147452,-548.46472791,0.00019999,2]
[383801902,1757122147475,-548.46472791,0.00019999,2]
[383801903,1757122147498,-548.46472791,0.00019999,2]
[383801904,1757122147521,-548.46472791,0.00019999,2]
[383801905,1757122147545,-548.46472791,0.00019999,2]
[383801906,1757122147572,-548.46472791,0.00019999,2]
[383801907,1757122147595,-548.46472791,0.00019999,2]
[383801908,1757122147618,-548.46472791,0.00019999,2]
[383801909,1757122147642,-548.46472791,0.00019999,2]
[383801910,1757122147666,-548.46472791,0.00019999,2]
[383801911,1757122147689,-548.46472791,0.00019999,2]
[383801912,1757122147711,-531.58889013,0.00019999,2]
[383801913,1757122147734,-531.58889013,0.00019999,2]
[383801914,1757122147758,-531.58889013,0.00019999,2]
[383801915,1757122147780,-531.58889013,0.00019999,2]
[383801916,1757122147804,-531.58889013,0.00019999,2]
[383801917,1757122147842,-531.58889013,0.00019999,2]
[383801918,1757122147870,-531.58889013,0.00019999,2]
[383801919,1757122147897,-531.58889013,0.00019999,2]
[383801920,1757122147922,-531.58889013,0.00019999,2]
[383801921,1757122147947,-531.58889013,0.00019999,2]
[383801922,1757122147973,-531.58889013,0.00019999,2]
[383801923,1757122147998,-531.58889013,0.00019999,2]
[383801924,1757122148024,-531.58889013,0.00019999,2]
[383801925,1757122148049,-531.58889013,0.00019999,2]
[383801926,1757122148072,-531.58889013,0.00019999,2]
[383801927,1757122148096,-531.58889013,0.00019999,2]
[383801928,1757122148120,-531.58889013,0.00019999,2]
[383801929,1757122148146,-531.58889013,0.00019999,2]
[383801930,1757122148346,-531.58889013,0.00019999,2]
[383801931,1757122148368,-531.58889013,0.00019999,2]
[383801932,1757122148390,-531.58889013,0.00019999,2]
[383801933,1757122148411,-531.58889013,0.00019999,2]
[383801934,1757122148433,-531.58889013,0.00019999,2]
[383801935,1757122148455,-531.58889013,0.00019999,2]
[383801936,1757122148476,-531.58889013,0.00019999,2]
[383801937,1757122148498,-531.58889013,0.00019999,2]
[383801938,1757122148519,-9953.20104231,0.0002,2]
[383801939,1757122148548,-47823.66778,0.0002,2]
[383801941,1757122167246,-239253.2212,0.0002,2]
[383801942,1757122169310,-35151.29562,0.0002,2]
[383801943,1757122174260,-29575.17107471,0.0002,2]
[383801948,1757122232347,-167.71,0.0001999,2]
[383801949,1757122232357,-167.71,0.0001999,2]
[383801950,1757122232366,-167.71,0.0001999,2]
[383801951,1757122232375,-167.71,0.0001999,2]
[383801952,1757122232384,-1200.0,0.00019999,2]
[383801953,1757122232393,-300.0,0.00019999,2]
[383801954,1757122232402,-300.0,0.00019999,2]
[383801955,1757122232412,-405.0,0.00019999,2]
[383801956,1757122232421,-250.0,0.0002,2]
[383801957,1757122232430,-21003.44795385,0.0002,2]
[383801958,1757122232441,-982.10324602,0.0002,2]
[383801959,1757122232460,-136728.38409554,0.0002,2]
[383801960,1757122232471,-1232.70719987,0.0002,2]
[383801961,1757122232685,-55625.69601083,0.0002,2]
[383801968,1757122238236,-2754.36467352,0.0002,2]
[383801970,1757122238334,-9257.02535602,0.0002,2]
[383801971,1757122238432,-1000.18778537,0.0002,2]
[383801972,1757122238552,-1127.4,0.0002,2]
[383801973,1757122238564,-1433.99627145,0.0002,2]
[383801975,1757122238633,-881914.99850706,0.0002,2]
[383801976,1757122238643,-420.0,0.00021777,2]
[383801977,1757122238653,-195.0,0.00021999,2]
[383801978,1757122238662,-300.0,0.00021999,2]
[383801979,1757122238672,-250.0,0.00021999,2]
[383801980,1757122238682,-250.0,0.00022275,2]
[383801981,1757122238691,-271.20997938,0.000247,2]
[383801982,1757122238701,-19434.6590322,0.000248,3]
[383801983,1757122238711,-465.31,0.000248,7]
[383801984,1757122238720,-274.71,0.000248,7]
[383801985,1757122238730,-212.63008182,0.000248,3]
[383801987,1757122238739,-305.9524272,0.000249,2]
[383801989,1757122238748,-561.41467063,0.00027619,4]
[383801990,1757122238758,-271.20997936,0.00032586,2]
[383801991,1757122238767,-500.0,0.00034084,7]
[383801992,1757122238776,-156.08587707,0.000349,2]
[383801993,1757122238786,-400.0,0.00035616,10]
[383801994,1757122238795,-400.0,0.00035616,10]
[383801995,1757122238804,-400.0,0.00035616,10]
[383801996,1757122238814,-400.0,0.00035616,10]
[383801997,1757122238824,-400.0,0.00035616,10]
[383801998,1757122238833,-402.71005924,0.00035616,10]
[383802000,1757122238843,-400.0,0.00035616,10]
[383802001,1757122238852,-400.0,0.00035616,10]
[383802003,1757122238861,-400.0,0.00035616,10]
[383802004,1757122238871,-400.0,0.00035616,10]
[383802005,1757122238880,-400.0,0.00035616,10]
[383802006,1757122238890,-400.0,0.00035616,10]
[383802007,1757122238899,-400.0,0.00035616,10]
[383802008,1757122238908,-400.0,0.00035616,10]
[383802009,1757122238917,-400.0,0.00035616,10]
[383802010,1757122238926,-400.0,0.00035616,10]
[383802011,1757122238936,-400.0,0.00035616,10]
[383802012,1757122238945,-400.0,0.00035616,10]
[383802013,1757122238954,-409.6526036,0.00035616,10]
[383802014,1757122238963,-422.89089887,0.00035616,10]
[383802015,1757122238973,-401.85292429,0.00035616,10]
[383802016,1757122238982,-407.52738868,0.00035616,10]
[383802017,1757122238991,-173.2806634,0.00035616,10]
[383802018,1757122239000,-415.82116715,0.00035616,10]
[383802019,1757122239009,-400.0,0.00035616,10]
[383802020,1757122239018,-402.8465892,0.00035616,10]
[383802021,1757122239028,-400.0,0.00035616,10]
[383802022,1757122239037,-415.63952409,0.00035616,10]
[383802023,1757122239047,-400.0,0.00035616,10]
[383802024,1757122239058,-400.0,0.00035616,10]
[383802025,1757122239067,-403.03808952,0.00035616,10]
[383802026,1757122239076,-400.0,0.00035616,10]
[383802027,1757122239086,-413.9977407,0.00035616,10]
[383802028,1757122239095,-403.05609603,0.00035616,10]
[383802029,1757122239104,-412.21062023,0.00035616,10]
[383802030,1757122239113,-416.23184561,0.00035616,10]
[383802031,1757122239124,-404.55554432,0.00035616,10]
[383802032,1757122239133,-405.36521441,0.00035616,10]
[383802033,1757122239143,-1437.67,0.00035616,10]
[383802034,1757122239153,-404.21936398,0.00035616,10]
[383802035,1757122239162,-420.82633716,0.00035616,10]
[383802036,1757122239171,-405.23589453,0.00035616,10]
[383802037,1757122239181,-402.95386319,0.00035616,10]
[383802038,1757122239190,-382.21605451,0.00035616,10]
[383802039,1757122239199,-407.22508294,0.00035616,10]
[383802040,1757122239209,-422.51840555,0.00035616,10]
[383802041,1757122239218,-402.06913911,0.00035616,10]
[383802042,1757122239228,-408.09364713,0.00035616,10]
[383802043,1757122239237,-409.43327636,0.00035616,10]
[383802044,1757122239246,-500.0,0.00035616,2]
[383802045,1757122239256,-500.0,0.00035616,2]
[383802046,1757122239265,-500.0,0.00035616,2]
[383802047,1757122239274,-401.56046561,0.00035616,10]
[383802048,1757122239285,-406.16326711,0.00035616,10]
[383802049,1757122239294,-500.0,0.00035616,2]
[383802050,1757122239304,-500.0,0.00035616,2]
[383802051,1757122239314,-500.0,0.00035616,2]
[383802052,1757122239326,-406.22171441,0.00035616,10]
[383802053,1757122239335,-400.0,0.00035616,10]
[383802054,1757122239345,-404.66654132,0.00035616,10]
[383802055,1757122239354,-400.0,0.0003589,10]
[383802056,1757122239364,-400.0,0.0003589,10]
[383802057,1757122239373,-400.0,0.0003589,10]
[383802058,1757122239383,-400.0,0.0003589,10]
[383802059,1757122239393,-400.0,0.0003589,10]
[383802060,1757122239402,-400.0,0.0003589,10]
[383802061,1757122239412,-410.11675916,0.0003589,10]
[383802062,1757122239421,-400.0,0.0003589,10]
[383802063,1757122239564,-416.21360075,0.0003589,10]
[383802064,1757122239574,-164.55104511,0.0003589,10]
[383802065,1757122239586,-1437.67,0.0003589,10]
[383802066,1757122239596,-416.74289301,0.0003589,10]
[383802067,1757122239605,-400.0,0.00036164,10]
[383802068,1757122239615,-400.0,0.00036164,10]
[383802069,1757122239624,-400.0,0.00036164,10]
[383802070,1757122239634,-400.0,0.00036164,10]
[383802071,1757122239644,-400.0,0.00036164,10]
[383802072,1757122239653,-400.0,0.00036164,10]
[383802073,1757122239666,-400.0,0.00036164,10]
[383802074,1757122239676,-1437.67,0.00036164,10]
[383802075,1757122239686,-190.99,0.00036438,10]
[383802076,1757122239695,-400.0,0.00036438,10]
[383802077,1757122239705,-400.0,0.00036438,10]
[383802078,1757122239715,-400.0,0.00036438,10]
[383802079,1757122239724,-400.0,0.00036438,10]
[383802080,1757122239734,-400.0,0.00036438,10]
[383802081,1757122239743,-273.79474107,0.00036438,10]
[383802082,1757122239753,-1437.67,0.00036438,10]
[383802083,1757122239763,-400.0,0.00036712,10]
[383802084,1757122239772,-400.0,0.00036712,10]
[383802085,1757122239781,-400.0,0.00036712,10]
[383802086,1757122239791,-400.0,0.00036712,10]
[383802087,1757122239800,-400.0,0.00036712,10]
[383802088,1757122239810,-1437.67,0.00036712,10]
[383802089,1757122239819,-400.0,0.00036986,10]
[383802090,1757122239828,-400.0,0.00036986,10]
[383802091,1757122239838,-400.0,0.00036986,10]
[383802092,1757122239848,-400.0,0.00036986,10]
[383802093,1757122239857,-400.0,0.00036986,10]
[383802094,1757122239866,-1437.67,0.00036986,10]
[383802095,1757122239875,-1005.37,0.00037045,2]
[383802096,1757122239884,-400.0,0.0003726,10]
[383802097,1757122239893,-400.0,0.0003726,10]
[383802098,1757122239903,-400.0,0.0003726,10]
[383802099,1757122239912,-400.0,0.0003726,10]
[383802100,1757122239921,-400.0,0.0003726,10]
[383802101,1757122239930,-1437.67,0.0003726,10]
[383802102,1757122239940,-2885.50218222,0.00037353,9]
[383802103,1757122239950,-400.0,0.00037534,10]
[383802104,1757122239960,-400.0,0.00037534,10]
[383802105,1757122239969,-400.0,0.00037534,10]
[383802106,1757122239978,-400.0,0.00037534,10]
[383802107,1757122239990,-400.0,0.00037534,10]
[383802108,1757122240002,-1437.67,0.00037534,10]
[383802109,1757122240013,-1229.79,0.00037588,2]
[383802110,1757122240023,-400.0,0.00037808,10]
[383802111,1757122240034,-400.0,0.00037808,10]
[383802112,1757122240049,-400.0,0.00037808,10]
[383802113,1757122240065,-400.0,0.00037808,10]
[383802114,1757122240076,-400.0,0.00037808,10]
[383802115,1757122240087,-1437.67,0.00037808,10]
[383802116,1757122240098,-154.0,0.00038,120]
[383802117,1757122240108,-225.0,0.00038,120]
[383802118,1757122240117,-400.0,0.00038082,10]
[383802119,1757122240129,-400.0,0.00038082,10]
[383802120,1757122240138,-400.0,0.00038082,10]
[383802121,1757122240148,-400.0,0.00038082,10]
[383802122,1757122240158,-400.0,0.00038082,10]
[383802123,1757122240167,-1437.67,0.00038082,10]
[383802124,1757122240177,-154.64073615,0.00038209,2]
[383802125,1757122240187,-781.21675436,0.00038218,30]
[383802126,1757122240196,-3009.67700492,0.00038219,120]
[383802127,1757122240207,-8747.0,0.00038219,120]
[383802128,1757122240217,-6683.0,0.00038219,120]
[383802129,1757122240227,-349.25521688,0.00038243,2]
[383802130,1757122240237,-890.81971936,0.00038243,2]
[383802131,1757122240247,-2271.0457815,0.00038243,2]
[383802132,1757122240256,-188.29771104,0.00038243,2]
[383802133,1757122240266,-5286.97959542,0.00038243,2]
[383802134,1757122240275,-151.61,0.00038332,2]
[383802135,1757122240285,-151.61,0.00038333,2]
[383802136,1757122240294,-151.61,0.00038333,2]
[383802137,1757122240304,-151.61,0.00038333,2]
[383802138,1757122240313,-151.61,0.00038333,2]
[383802139,1757122240322,-151.61,0.00038333,2]
[383802140,1757122240331,-151.61,0.00038333,2]
[383802141,1757122240340,-151.61,0.00038333,2]
[383802142,1757122240349,-151.61,0.00038333,2]
[383802143,1757122240359,-151.61,0.00038333,2]
[383802144,1757122240368,-151.61,0.00038333,2]
[383802145,1757122240377,-151.61,0.00038333,2]
[383802146,1757122240387,-151.61,0.00038333,2]
[383802147,1757122240396,-151.61,0.00038333,2]
[383802148,1757122240405,-151.61,0.00038333,2]
[383802149,1757122240415,-151.61,0.00038333,2]
[383802150,1757122240424,-151.61,0.00038333,2]
[383802151,1757122240433,-151.61,0.00038333,2]
[383802152,1757122240443,-151.61,0.00038333,2]
[383802153,1757122240452,-151.61,0.00038333,2]
[383802154,1757122240461,-151.61,0.00038333,2]
[383802155,1757122240471,-151.61,0.00038333,2]
[383802156,1757122240481,-151.61,0.00038333,2]
[383802157,1757122240492,-151.61,0.00038333,2]
[383802158,1757122240501,-151.61,0.00038333,2]
[383802159,1757122240511,-151.61,0.00038333,2]
[383802160,1757122240531,-151.61,0.00038333,2]
[383802161,1757122240541,-151.61,0.00038333,2]
[383802162,1757122240551,-151.61,0.00038333,2]
[383802163,1757122240561,-151.61,0.00038333,2]
[383802164,1757122240571,-151.61,0.00038333,2]
[383802165,1757122240581,-151.61,0.00038333,2]
[383802166,1757122240594,-151.61,0.00038333,2]
[383802167,1757122240604,-151.61,0.00038333,2]
[383802168,1757122240613,-151.61,0.00038333,2]
[383802169,1757122240623,-500.0,0.00038342,2]
[383802170,1757122240633,-166.56602739,0.00038342,2]
[383802171,1757122240642,-18917.08142372,0.00038342,4]
[383802172,1757122240651,-3425558.65673303,0.00038343,30]
[383802173,1757122240661,-1619.54659642,0.00038343,5]
[383802174,1757122240671,-400.0,0.00038356,10]
[383802175,1757122240680,-400.0,0.00038356,10]
[383802176,1757122240690,-400.0,0.00038356,10]
[383802177,1757122240699,-400.0,0.00038356,10]
[383802178,1757122240712,-400.0,0.00038356,10]
[383802179,1757122240722,-1437.67,0.00038356,10]
[383802180,1757122240731,-6243.58,0.000384,14]
[383802181,1757122240741,-1768.86,0.000384,30]
[383802182,1757122240751,-529.2,0.0003863,10]
[383802183,1757122240760,-400.0,0.0003863,10]
[383802184,1757122240770,-400.0,0.0003863,10]
[383802185,1757122240779,-441.24,0.0003863,10]
[383802186,1757122240788,-400.0,0.0003863,10]
[383802187,1757122240798,-1437.67,0.0003863,10]
[383802188,1757122240807,-400.0,0.00038904,10]
[383802189,1757122240817,-400.0,0.00038904,10]
[383802190,1757122240826,-400.0,0.00038904,10]
[383802191,1757122240836,-1437.67,0.00038904,10]
[383802192,1757122240845,-151.61,0.0003899,2]
[383802193,1757122240855,-151.61,0.0003899,2]
[383802194,1757122240865,-151.61,0.0003899,2]
[383802195,1757122240875,-151.61,0.0003899,2]
[383802196,1757122240884,-151.61,0.0003899,2]
[383802197,1757122240893,-151.61,0.0003899,2]
[383802198,1757122240902,-151.61,0.0003899,2]
[383802199,1757122240911,-151.61,0.0003899,2]
[383802200,1757122240919,-151.61,0.0003899,2]
[383802201,1757122240928,-151.61,0.0003899,2]
[383802202,1757122240937,-151.61,0.0003899,2]
[383802204,1757122240946,-1143219.63514265,0.00039,120]
[383802206,1757122240954,-151.0,0.00039,30]
[383802207,1757122240963,-151.0,0.00039,30]
[383802208,1757122240973,-151.0,0.00039,30]
[383802209,1757122240983,-151.0,0.00039,30]
[383802210,1757122240992,-151.0,0.00039,30]
[383802211,1757122241002,-167.654445,0.00039,30]
[383802212,1757122241011,-153.997555,0.00039,30]
[383802213,1757122241021,-151.0,0.00039,30]
[383802214,1757122241030,-151.0,0.00039,30]
[383802216,1757122241040,-400.0,0.00039178,10]
[383802218,1757122241049,-400.0,0.00039178,10]
[383802220,1757122241060,-214.63606216,0.00039178,10]
[383802222,1757122241069,-1437.67,0.00039178,10]
[383802224,1757122241078,-400.0,0.00039452,10]
[383802226,1757122241088,-400.0,0.00039452,10]
[383802228,1757122241097,-1437.67,0.00039452,10]
[383802230,1757122241106,-169.32301428,0.000397,120]
[383802232,1757122241115,-400.0,0.00039726,10]
[383802234,1757122241124,-400.0,0.00039726,10]
[383802236,1757122241134,-1437.67,0.00039726,10]
[383802237,1757122241143,-400.0,0.0004,10]
[383802239,1757122241152,-194.61714168,0.0004,10]
[383802241,1757122241162,-226.56,0.0004,120]
[383802243,1757122241171,-211.09,0.0004,120]
[383802245,1757122241180,-1437.67,0.0004,10]
[383802247,1757122241189,-198.15,0.00040273,10]
[383802249,1757122241198,-1437.67,0.00040273,10]
[383802251,1757122241208,-271.20997936,0.00040471,28]
[383802253,1757122241217,-1437.67,0.00040547,10]
[383802255,1757122241226,-1437.67,0.00040821,10]
[383802257,1757122241236,-150.0,0.00041017,120]
[383802259,1757122241245,-1437.67,0.00041095,120]
[383802261,1757122241254,-1437.67,0.00041369,120]
[383802263,1757122241263,-170.06810205,0.000415,120]
[383802265,1757122241272,-399.74796,0.0004161,10]
[383802267,1757122241282,-1437.67,0.00041643,120]
[383802269,1757122241291,-1437.76877932,0.00041917,120]
[383802270,1757122241300,-253.95725554,0.00042,30]
[383802271,1757122241309,-246.38640645,0.000425,120]
[383802272,1757122241319,-399.74796,0.0004261,14]
[383802273,1757122241328,-151.61,0.0004299,2]
[383802274,1757122241337,-164.69831052,0.00043,120]
[383802275,1757122241347,-19561.9528037,0.00043,120]
[383802276,1757122241356,-85056.76269253,0.000435,120]
[383802277,1757122241365,-399.74796,0.0004361,19]
[383802278,1757122241373,-243.87623288,0.000438,30]
[383802279,1757122241381,-151.61,0.0004399,2]
[383802280,1757122241390,-289.81898064,0.00044,120]
[383802281,1757122241399,-499.99,0.00044319,2]
[383802282,1757122241407,-1718.16,0.00044319,2]
[383802283,1757122241415,-37532.63,0.00044319,2]
[383802284,1757122241424,-1436.3,0.00044319,2]
[383802285,1757122241432,-303.51,0.00044319,2]
[383802287,1757122241441,-150.99,0.00044319,2]
[383802289,1757122241450,-342.09668294,0.0004439,120]
[383802291,1757122241458,-482.7997409,0.000445,7]
[383802293,1757122241467,-460.46631149,0.000448,120]
[383802295,1757122241476,-6243.58,0.000448,14]
[383802297,1757122241484,-150.0,0.00044955,93]
[383802299,1757122241493,-150.0,0.00044955,93]
[383802301,1757122241502,-150.0,0.00044955,93]
[383802304,1757122241513,-150.0,0.00044955,93]
[383802305,1757122241523,-150.0,0.00044955,93]
[383802306,1757122241533,-151.61,0.0004499,2]
[383802307,1757122241544,-30298.56380059,0.00045,2]
[383802308,1757122241554,-185.57855833,0.00045,120]
[383802309,1757122241566,-13255.05826593,0.00045,120]
[383802310,1757122241577,-285.97123061,0.00045,120]
[383802311,1757122241591,-417.69926247,0.00045,120]
[383802312,1757122241602,-423.8232489,0.00045,120]
[383802313,1757122241612,-194.60861138,0.00045,120]
[383802314,1757122241621,-4596.22376086,0.00045,120]
[383802315,1757122241631,-709367.76329604,0.00045,120]
[383802316,1757122241641,-299.29075863,0.00045,120]
[383802317,1757122241651,-273.9375978,0.00045,120]
[383802318,1757122241661,-1900.69,0.00045,120]
[383802319,1757122241671,-1768.86,0.00045,30]
[383802320,1757122241681,-169.56073279,0.0004513,120]
[383802321,1757122241691,-212.63008182,0.00045402,2]
[383802322,1757122241703,-154.0,0.000456,120]
[383802323,1757122241715,-162.72861807,0.000457,90]
[383802324,1757122241726,-204.45370996,0.000457,120]
[383802325,1757122241737,-3509.78464577,0.000458,2]
[383802326,1757122241748,-208.88816707,0.00046,120]
[383802327,1757122241759,-199.38496642,0.00046,120]
[383802328,1757122241770,-429.53,0.00046011,30]
[383802329,1757122241781,-801.77,0.00046023,30]
[383802330,1757122241791,-469.39,0.00046023,30]
[383802331,1757122241803,-161.79,0.00046023,30]
[383802332,1757122241814,-801.77,0.00046023,30]
[383802333,1757122241826,-210.33844955,0.0004613,120]
[383802334,1757122241837,-586.91995524,0.000464,120]
[383802335,1757122241848,-161.62384484,0.000464,120]
[383802336,1757122241859,-159.17033242,0.000468,60]
[383802337,1757122241869,-380.11774691,0.000468,120]
[383802338,1757122241879,-473.34267085,0.00047,120]
[383802339,1757122241890,-274.71,0.00047,30]
[383802340,1757122241900,-250.16,0.00047297,120]
[383802341,1757122241910,-187.26379524,0.000475,120]
[383802342,1757122241920,-5281.1428831,0.000476,2]
[383802343,1757122241931,-465.31,0.000476,14]
[383802344,1757122241941,-34307.53184585,0.000479,120]
[383802345,1757122241951,-151.0,0.000479,120]
[383802346,1757122241960,-151.0,0.000479,120]
[383802347,1757122241971,-155.0894,0.000479,120]
[383802348,1757122241981,-151.0,0.000479,120]
[383802349,1757122241991,-151.0,0.000479,120]
[383802350,1757122242002,-174.737886,0.000479,120]
[383802351,1757122242013,-1104.19593679,0.00047999,8]
[383802352,1757122242024,-711175.88299514,0.00048,120]
[383802353,1757122242035,-4443.404048,0.00048,60]
[383802354,1757122242045,-405.33219475,0.00048,30]
[383802355,1757122242056,-298.77603324,0.00048,30]
[383802356,1757122242067,-234.57403463,0.00048,120]
[383802357,1757122242077,-151.0,0.00048,120]
[383802358,1757122242089,-155.8166202,0.0004835,2]
[383802359,1757122242099,-271.20997936,0.00048357,28]
[383802360,1757122242110,-303.99634727,0.000486,120]
[383802361,1757122242121,-150.0,0.00048672,120]
[383802362,1757122242132,-209.42696692,0.000487,120]
[383802363,1757122242143,-444.0,0.00048885,120]
[383802364,1757122242154,-1768.86,0.000489,30]
[383802365,1757122242164,-230.67685132,0.00049,120]
[383802366,1757122242175,-440.71368932,0.00049,120]
[383802367,1757122242186,-301.61265588,0.00049,30]
[383802368,1757122242197,-6243.58,0.00049,14]
[383802369,1757122242207,-358.75405639,0.000498,30]
[383802370,1757122242218,-40645.87,0.00049865,7]
[383802371,1757122242228,-43067.3647516,0.0004999,2]
[383802372,1757122242239,-17675.0,0.0005,120]